bitfinex-derivatives/quotes_BTCF0:USTF0_20250724
["timestamp","ask_amount","ask_price","bid_price","bid_amount"]
[1753341574727,0.25018603,118100.0,118090.0,1.14769499]
[1753341574922,0.25018603,118100.0,118090.0,0.1692524]
[1753341575127,0.25018603,118100.0,118090.0,1.14733499]
[1753341575631,0.23058509,118100.0,118090.0,1.14733499]
[1753341577627,0.2501844,118100.0,118090.0,1.14733499]
[1753341577932,0.6109844,118100.0,118090.0,1.14733499]
[1753341578336,0.61098601,118100.0,118090.0,1.14733499]
[1753341579134,0.78022411,118100.0,118090.0,1.14673499]
[1753341579327,0.61098601,118100.0,118090.0,1.14673499]
[1753341580034,0.78022411,118100.0,118090.0,1.14673499]
[1753341580327,0.61098601,118100.0,118090.0,1.14673499]
[1753341580522,0.78022411,118100.0,118090.0,1.14673499]
[1753341581432,0.76062319,118100.0,118090.0,1.14673499]
[1753341583535,0.59138509,118100.0,118090.0,1.14673499]
[1753341583730,0.1692524,118090.0,118080.0,0.45990689]
[1753341583938,0.7403324,118090.0,118080.0,1.27332369]
[1753341585431,0.7403324,118090.0,118080.0,0.9403611]
[1753341585635,0.7403324,118090.0,118080.0,1.33401895]
[1753341585834,0.7403324,118090.0,118080.0,1.27332369]
[1753341588733,0.7403324,118090.0,118080.0,0.9403611]
[1753341588932,0.7403324,118090.0,118080.0,1.27332369]
[1753341591844,0.7403324,118090.0,118080.0,0.9403611]
[1753341592042,0.7403324,118090.0,118080.0,1.27332369]
[1753341593144,0.57108,118090.0,118080.0,1.27332369]
[1753341593349,0.21028,118090.0,118080.0,1.27332369]
[1753341594044,0.3795324,118090.0,118080.0,1.27332369]
[1753341594241,0.7403324,118090.0,118080.0,0.9403611]
[1753341594745,0.7403324,118090.0,118080.0,1.27332369]
[1753341595146,0.7403324,118090.0,118080.0,1.22423272]
[1753341597055,0.7403324,118090.0,118080.0,1.18191702]
[1753341597245,0.76013433,118090.0,118080.0,1.23071273]
[1753341598053,0.76013433,118090.0,118080.0,0.8980454]
[1753341598248,0.76013433,118090.0,118080.0,1.23071273]
[1753341599051,0.76013433,118090.0,118080.0,0.8134267]
[1753341599257,0.2254267,118080.0,118070.0,0.8962689]
[1753341599557,0.7403467,118080.0,118070.0,0.8962689]
[1753341599952,0.7403467,118080.0,118070.0,0.64236]
[1753341600154,0.7403467,118080.0,118050.0,0.31464386]
[1753341600155,0.2529454,118060.0,118050.0,0.31464386]
[1753341600459,1.1011754,118060.0,118050.0,0.8115376]
[1753341600659,1.1011754,118060.0,118050.0,0.64224]
[1753341600850,1.1311754,118060.0,118050.0,0.64224]
[1753341601052,0.96188,118060.0,118050.0,0.8115498]
[1753341601256,1.1311754,118060.0,118050.0,0.8115498]
[1753341601556,1.1311754,118060.0,118050.0,1.14421713]
[1753341601758,1.0750154,118060.0,118050.0,0.50397713]
[1753341601959,0.98330275,118060.0,118050.0,1.14605713]
[1753341602153,0.98330275,118060.0,118050.0,1.14805713]
[1753341602349,0.98329039,118060.0,118050.0,1.14805713]
[1753341602549,0.84823,118060.0,118050.0,1.14805713]
[1753341602850,0.12663,118060.0,118050.0,1.14801713]
[1753341603052,0.12663,118060.0,118050.0,0.8153498]
[1753341603053,0.7391654,118060.0,118050.0,0.8153498]
[1753341603249,0.7391654,118060.0,118050.0,1.14801713]
[1753341603459,0.7391654,118060.0,118050.0,0.8153498]
[1753341603755,0.7391654,118060.0,118050.0,0.8152698]
[1753341604560,0.9285814,118060.0,118050.0,0.004]
[1753341604760,0.7591654,118060.0,118050.0,0.004]
[1753341605960,0.7591654,118060.0,118050.0,0.1733097]
[1753341606749,0.7591654,118060.0,118050.0,0.004]
[1753341607354,0.9285814,118060.0,118050.0,0.004]
[1753341607555,0.3735197,118050.0,118040.0,0.1694121]
[1753341607750,0.7643197,118050.0,118040.0,0.1694121]
[1753341608154,0.7643197,118050.0,118040.0,0.50207943]
[1753341608356,0.59501,118050.0,118040.0,0.50425943]
[1753341608548,0.7643197,118050.0,118040.0,0.50425943]
[1753341608757,0.7643197,118050.0,118040.0,0.50825943]
[1753341609057,0.7643197,118050.0,118040.0,0.1755921]
[1753341609359,0.7643197,118050.0,118040.0,0.50825943]
[1753341609761,0.7643197,118050.0,118040.0,0.1755921]
[1753341610063,0.7643197,118050.0,118040.0,0.50825943]
[1753341610659,0.7643197,118050.0,118040.0,0.51025943]
[1753341614160,0.7643197,118050.0,118040.0,0.50807943]
[1753341614362,0.78450761,118050.0,118040.0,0.50807943]
[1753341614561,0.78450761,118050.0,118040.0,0.1754121]
[1753341614962,0.78450761,118050.0,118040.0,0.50807943]
[1753341615357,0.78450761,118050.0,118040.0,0.1754121]
[1753341615557,0.78450761,118050.0,118040.0,0.50807943]
[1753341615762,0.78450761,118050.0,118040.0,0.1754121]
[1753341616169,0.78450761,118050.0,118040.0,0.0061]
[1753341616369,0.78450761,118050.0,118040.0,0.175424]
[1753341617670,0.78450761,118050.0,118040.0,0.0061]
[1753341618372,1.11717494,118050.0,118040.0,0.0061]
[1753341618871,1.92711894,118050.0,118040.0,0.0061]
[1753341619279,1.59445161,118050.0,118040.0,0.0061]
[1753341619864,0.12177,118030.0,118020.0,0.8946998]
[1753341620065,1.1151484,118030.0,118020.0,0.8946998]
[1753341620873,1.1151484,118030.0,118020.0,1.22736713]
[1753341621075,1.1151484,118030.0,118020.0,1.23136713]
[1753341621680,1.1151484,118030.0,118020.0,1.23636713]
[1753341622177,1.1151484,118030.0,118020.0,1.24762713]
[1753341623076,0.92581,118030.0,118020.0,1.24762713]
[1753341623274,1.0951484,118030.0,118020.0,1.24762713]
[1753341623774,0.92581,118030.0,118020.0,1.24762713]
[1753341624372,1.0951484,118030.0,118020.0,1.24762713]
[1753341625280,0.92581,118030.0,118020.0,1.24762713]
[1753341625767,0.94600846,118030.0,118020.0,1.24762713]
[1753341626169,1.11534686,118030.0,118020.0,0.9149598]
[1753341626468,1.11534686,118030.0,118020.0,0.60714713]
[1753341626668,1.11534686,118030.0,118020.0,1.24686713]
[1753341627276,0.94600846,118030.0,118020.0,1.24686713]
[1753341628069,0.58520846,118030.0,118020.0,1.24686713]
[1753341628377,0.48257,118040.0,118030.0,0.1798084]
[1753341628579,0.50278958,118040.0,118030.0,0.51901573]
[1753341628878,0.48257,118040.0,118030.0,0.51901573]
[1753341629178,0.48257,118040.0,118030.0,0.47037598]
[1753341629571,0.48257,118040.0,118030.0,0.47337598]
[1753341629972,0.50954,118040.0,118030.0,0.47537598]
[1753341630774,0.50954,118040.0,118030.0,1.11489598]
[1753341630977,0.53441,118040.0,118030.0,1.11489598]
[1753341631178,0.56501,118040.0,118030.0,1.1637293]
[1753341631480,0.56501,118040.0,118030.0,0.8308684]
[1753341631679,0.56501,118040.0,118030.0,1.1637293]
[1753341632780,0.56501,118040.0,118030.0,1.1571893]
[1753341633680,0.56501,118040.0,118030.0,0.8243284]
[1753341633875,0.56501,118040.0,118030.0,1.1571893]
[1753341638079,0.58526012,118040.0,118030.0,1.1571893]
[1753341638282,0.58526012,118040.0,118030.0,1.1633593]
[1753341639180,0.56501,118040.0,118030.0,1.1633593]
[1753341639878,0.0001,118050.0,118040.0,0.321244]
[1753341640194,0.0001,118050.0,118040.0,0.6815749]
[1753341640576,1e-07,118050.0,118040.0,1.0144358]
[1753341640881,0.42962946,118070.0,118060.0,0.3486854]
[1753341641180,0.38104323,118070.0,118060.0,1.3198663]
[1753341641681,0.6107267,118080.0,118070.0,0.348671]
[1753341641885,0.71439183,118080.0,118070.0,0.6815319]
[1753341642086,0.75294183,118080.0,118070.0,0.6815319]
[1753341642284,0.7327067,118080.0,118070.0,0.348671]
[1753341642482,0.7327067,118080.0,118070.0,0.68976929]
[1753341642684,0.79899854,118080.0,118070.0,0.68976929]
[1753341643388,0.79999854,118080.0,118070.0,0.68976929]
[1753341644080,0.80299854,118080.0,118070.0,0.68976929]
[1753341644988,0.64373184,118080.0,118070.0,0.68976929]
[1753341645184,0.63373184,118080.0,118070.0,0.68976929]
[1753341645390,0.56744,118080.0,118070.0,0.68976929]
[1753341645688,0.20664,118080.0,118070.0,0.68976929]
[1753341645889,0.56744,118080.0,118070.0,0.68976929]
[1753341646589,0.56644,118080.0,118070.0,0.68976929]
[1753341646977,0.56344,118080.0,118070.0,0.68976929]
[1753341647178,0.56544,118080.0,118070.0,0.68976929]
[1753341648588,0.002,118080.0,118070.0,0.68976929]
[1753341649285,0.002,118080.0,118070.0,0.35690839]
[1753341649493,0.002,118080.0,118070.0,0.68976929]
[1753341651492,0.002,118080.0,118070.0,0.85915329]
[1753341651793,0.3608,118090.0,118080.0,0.2950467]
[1753341651992,0.3608,118090.0,118080.0,1.3186376]
[1753341652195,0.46131509,118100.0,118090.0,0.3486424]
[1753341652386,0.59131509,118100.0,118090.0,0.6815033]
[1753341652586,0.14730509,118100.0,118090.0,0.6815033]
[1753341652787,0.01730509,118100.0,118090.0,0.6815033]
[1753341653186,0.01730509,118100.0,118090.0,0.6323159]
[1753341653387,0.01730509,118100.0,118090.0,0.3486424]
[1753341653582,0.01730509,118100.0,118090.0,0.6323159]
[1753341653791,0.02030509,118100.0,118090.0,0.6323159]
[1753341654990,0.40546,118110.0,118090.0,0.6323159]
[1753341654991,0.04466,118110.0,118090.0,0.7262835]
[1753341655185,0.3608,118130.0,118120.0,0.3485994]
[1753341655186,0.12198,118130.0,118120.0,0.3485994]
[1753341655388,0.12198,118130.0,118120.0,0.9159464]
[1753341656790,0.08721,118130.0,118120.0,0.9159464]
[1753341656991,0.0016,118160.0,118120.0,0.9159464]
[1753341656992,0.3624,118160.0,118150.0,0.3476664]
[1753341657292,0.48438,118160.0,118150.0,1.27621202]
[1753341657492,0.7341921,118160.0,118150.0,1.2405499]
[1753341657693,0.75439418,118160.0,118150.0,0.5346499]
[1753341657895,0.3718064,118150.0,118140.0,0.6615329]
[1753341658098,0.7326064,118150.0,118140.0,0.9590294]
[1753341658294,0.7326064,118150.0,118140.0,1.2427029]
[1753341658598,0.7326064,118150.0,118140.0,0.9590294]
[1753341658791,0.7326064,118150.0,118140.0,0.6060229]
[1753341658990,0.7326064,118150.0,118140.0,1.2425429]
[1753341659389,0.7326064,118150.0,118140.0,0.9588694]
[1753341659693,0.7326064,118150.0,118140.0,1.2425429]
[1753341660197,0.7326064,118150.0,118140.0,0.9588694]
[1753341660396,0.7326064,118150.0,118120.0,0.4305723]
[1753341660397,0.3755688,118140.0,118120.0,0.45749]
[1753341660599,0.737535,118140.0,118130.0,0.8056637]
[1753341660898,1.098335,118140.0,118130.0,0.8056637]
[1753341661091,1.219525,118140.0,118130.0,0.8056637]
[1753341661487,1.219525,118140.0,118130.0,1.08937725]
[1753341661688,0.56265,118140.0,118130.0,1.12872725]
[1753341661997,0.40445,118140.0,118130.0,1.19237725]
[1753341662293,0.44189,118140.0,118130.0,1.19237725]
[1753341662496,0.6511707,118140.0,118130.0,1.27399725]
[1753341662691,0.7355907,118140.0,118130.0,1.27399725]
[1753341662904,0.7355907,118140.0,118130.0,0.80570375]
[1753341663203,1.0983907,118140.0,118130.0,0.63652005]
[1753341663398,1.76083122,118140.0,118130.0,4.005e-05]
[1753341663602,1.76083122,118140.0,118130.0,1e-08]
[1753341663603,1.93012722,118140.0,118130.0,1e-08]
[1753341663804,0.3748194,118120.0,118110.0,0.8478878]
[1753341664007,1.0964194,118120.0,118110.0,0.8055822]
[1753341664304,1.0964194,118120.0,118110.0,0.8055837]
[1753341664493,1.0964194,118120.0,118110.0,0.63636]
[1753341664696,0.3748337,118110.0,118100.0,0.2961513]
[1753341664897,0.7356337,118110.0,118100.0,0.8055471]
[1753341665808,0.7356337,118110.0,118100.0,0.63632]
[1753341666109,0.7356337,118110.0,118100.0,0.805558]
[1753341666604,0.7356337,118110.0,118100.0,0.888178]
[1753341666805,0.7336337,118110.0,118100.0,1.25996852]
[1753341667203,0.7336337,118110.0,118100.0,0.927528]
[1753341667399,0.7336337,118110.0,118100.0,1.25996852]
[1753341667604,0.7336337,118110.0,118100.0,1.25896852]
[1753341667605,0.7346337,118110.0,118100.0,1.25896852]
[1753341668112,0.7346337,118110.0,118100.0,0.926528]
[1753341668303,0.7346337,118110.0,118100.0,1.25896852]
[1753341669302,0.0423053,118120.0,118100.0,1.20257852]
[1753341669502,0.251842,118160.0,118150.0,0.2328163]
[1753341669804,0.71897,118160.0,118150.0,0.92605682]
[1753341670009,1.03897,118160.0,118150.0,0.92605682]
[1753341670214,1.07907,118160.0,118150.0,0.89232682]
[1753341670423,0.3216,118160.0,118150.0,0.5299664]
[1753341670628,0.3216,118160.0,118150.0,0.86240692]
[1753341671108,0.3216,118160.0,118150.0,0.89613692]
[1753341671109,1.07895,118160.0,118150.0,0.89613692]
[1753341671311,1.08195,118160.0,118150.0,0.89613692]
[1753341671617,1.08495,118160.0,118150.0,0.89613692]
[1753341672519,0.44879,118160.0,118150.0,0.89613692]
[1753341672712,1.08495,118160.0,118150.0,0.5636964]
[1753341672912,0.44879,118160.0,118150.0,0.5636964]
[1753341673111,1.2540621,118160.0,118150.0,0.5299664]
[1753341673515,1.2540621,118160.0,118120.0,0.02992]
[1753341673516,0.1198375,118140.0,118120.0,0.77784382]
[1753341673716,1.25894552,118130.0,118120.0,0.3608]
[1753341673920,0.2903993,118120.0,118110.0,0.5300134]
[1753341674117,0.2903993,118120.0,118110.0,0.5300237]
[1753341674118,0.6303993,118120.0,118110.0,0.5300237]
[1753341674413,1.2665193,118120.0,118110.0,0.3608]
[1753341675319,1.2665193,118120.0,118110.0,0.3638]
[1753341677012,1.2685193,118120.0,118110.0,0.3608]
[1753341677417,1.96167982,118120.0,118110.0,0.001]
[1753341678015,0.169238,118100.0,118090.0,0.530051]
[1753341678323,1.276468,118100.0,118090.0,0.530051]
[1753341678918,0.640428,118100.0,118090.0,0.86249152]
[1753341679417,1.276428,118100.0,118090.0,0.86249152]
[1753341679724,1.276428,118100.0,118090.0,0.94807152]
[1753341680220,0.290428,118100.0,118090.0,0.94807152]
[1753341680623,0.926428,118100.0,118090.0,0.86249152]
[1753341681218,1.296428,118100.0,118090.0,0.3608]
[1753341681422,1.31528877,118100.0,118090.0,0.5300523]
[1753341681623,1.31528877,118100.0,118090.0,0.3608]
[1753341681819,1.64772929,118100.0,118090.0,0.3608]
[1753341682125,0.1692667,118080.0,118070.0,0.5300681]
[1753341682319,1.2764167,118080.0,118070.0,0.530081]
[1753341683423,1.2764167,118080.0,118070.0,0.3608]
[1753341684015,1.2764167,118080.0,118070.0,0.3638]
[1753341684321,1.2764167,118080.0,118070.0,0.533081]
[1753341684722,1.29526634,118080.0,118070.0,0.3648]
[1753341685323,1.2764167,118080.0,118070.0,0.3648]
[1753341685923,1.2764167,118080.0,118070.0,0.534081]
[1753341686925,1.2764167,118080.0,118070.0,0.3648]
[1753341687825,1.60885722,118080.0,118070.0,0.3648]
[1753341688221,1.60885722,118080.0,118070.0,0.004]
[1753341688423,1.96965722,118080.0,118070.0,0.004]
[1753341688923,1.98849464,118080.0,118070.0,0.004]
[1753341689423,1.96965722,118080.0,118070.0,0.004]
[1753341690020,1.9884911,118080.0,118070.0,0.004]
[1753341690527,1.96965722,118080.0,118070.0,0.004]
[1753341690723,0.374891,118070.0,118060.0,0.3608]
[1753341690924,0.724891,118070.0,118060.0,0.3608]
[1753341691124,1.05733152,118070.0,118060.0,0.3608]
[1753341692220,1.07616047,118070.0,118060.0,0.3608]
[1753341692427,0.74371995,118070.0,118060.0,0.3628]
[1753341692930,1.07616047,118070.0,118060.0,0.3628]
[1753341693425,1.07616047,118070.0,118060.0,0.3648]
[1753341693931,1.24556047,118070.0,118060.0,0.004]
[1753341694123,1.24656047,118070.0,118060.0,0.002]
[1753341694319,1.26538888,118070.0,118060.0,0.002]
[1753341695220,1.24656047,118070.0,118060.0,0.002]
[1753341696026,0.4011397,118050.0,118040.0,0.00017439]
[1753341696225,0.4011684,118030.0,118020.0,0.5804727]
[1753341696432,1.4170484,118030.0,118020.0,0.6561027]
[1753341696725,2.11028892,118030.0,118020.0,0.0002]
[1753341696925,0.4011971,118010.0,118000.0,0.80555212]
[1753341697131,1.4150371,118010.0,118000.0,0.80555212]
[1753341697433,1.4150371,118010.0,118000.0,0.59383172]
[1753341697733,1.4150371,118010.0,118000.0,0.55111172]
[1753341698231,1.4110371,118010.0,118000.0,0.55111172]
[1753341698429,0.7751971,118010.0,118000.0,0.72049312]
[1753341698733,0.7751971,118010.0,118000.0,0.76321312]
[1753341698734,1.4069971,118010.0,118000.0,0.76321312]
[1753341698933,1.4069971,118010.0,118000.0,0.76421312]
[1753341699634,1.4069971,118010.0,118000.0,0.3619]
[1753341699834,1.7677971,118010.0,118000.0,0.0011]
[1753341700037,1.1319971,118010.0,118000.0,0.0011]
[1753341700333,1.7678371,118010.0,118000.0,0.0011]
[1753341701131,1.1319971,118010.0,118000.0,0.0011]
[1753341701332,1.3971171,118010.0,118000.0,0.0011]
[1753341701536,0.7611971,118010.0,118000.0,0.05122]
[1753341701730,1.1219971,118010.0,118000.0,0.05222]
[1753341701929,1.7579171,118010.0,118000.0,0.0021]
[1753341702324,1.7578771,118010.0,118000.0,0.0021]
[1753341702836,1.1219971,118010.0,118000.0,0.1714814]
[1753341703036,0.7611971,118010.0,118000.0,0.2216014]
[1753341703233,0.3911971,118010.0,118000.0,0.5824014]
[1753341703437,1.3970771,118010.0,118000.0,0.3629]
[1753341703637,1.3970771,118010.0,118000.0,0.0021]
[1753341703936,1.7578771,118010.0,118000.0,0.0021]
[1753341704137,0.7519971,118010.0,118000.0,0.0021]
[1753341704436,1.72677394,118010.0,118000.0,0.0021]
[1753341704831,1.40681394,118010.0,118000.0,0.0021]
[1753341705035,1.74681394,118010.0,118000.0,0.0021]
[1753341705635,2.06035762,118010.0,118000.0,0.0021]
[1753341706233,2.06035762,118010.0,117980.0,0.90509812]
[1753341706234,0.4012258,117990.0,117980.0,0.0001]
[1753341706542,1.3671058,117990.0,117980.0,0.0001]
[1753341707433,1.3671058,117990.0,117980.0,0.0011]
[1753341707434,1.7279058,117990.0,117980.0,0.0011]
[1753341707636,2.06034632,117990.0,117980.0,0.0011]
[1753341707837,2.07923987,117990.0,117980.0,0.0011]
[1753341708534,2.07923987,117990.0,117980.0,0.0021]
[1753341709134,2.07919987,117990.0,117980.0,0.0021]
[1753341709442,0.2603845,117970.0,117960.0,0.3608]
[1753341709633,0.1694388,117960.0,117950.0,1.08579952]
[1753341709828,0.7612688,117960.0,117950.0,1.08579952]
[1753341710036,0.7612688,117960.0,117950.0,1.04343662]
[1753341710236,0.7612688,117960.0,117950.0,0.7203532]
[1753341710633,0.7582688,117960.0,117950.0,0.5941232]
[1753341711234,0.7582688,117960.0,117950.0,0.5981232]
[1753341711435,0.3982688,117960.0,117950.0,0.6937932]
[1753341711841,0.3952688,117960.0,117950.0,1.02623372]
[1753341712042,0.7652688,117960.0,117950.0,0.6937932]
[1753341713441,0.7652688,117960.0,117950.0,0.52434]
[1753341713641,0.7652688,117960.0,117950.0,0.6937932]
[1753341715140,0.7052688,117960.0,117950.0,0.6937932]
[1753341715733,0.7052688,117960.0,117950.0,0.7243632]
[1753341715941,0.7052688,117960.0,117950.0,0.7273632]
[1753341717441,1.3410688,117960.0,117950.0,0.7273632]
[1753341718042,1.40912372,117960.0,117950.0,0.7273632]
[1753341718241,1.09908372,117960.0,117950.0,0.7273632]
[1753341718435,1.45908372,117960.0,117950.0,0.7273632]
[1753341718637,1.09908372,117960.0,117950.0,0.7273632]
[1753341718838,1.42908372,117960.0,117950.0,0.7273632]
[1753341719739,1.09908372,117960.0,117950.0,0.7273632]
[1753341720036,0.3952688,117960.0,117950.0,0.7700832]
[1753341720236,0.2432768,117970.0,117960.0,0.3567189]
[1753341720443,0.1694245,117970.0,117960.0,1.09550942]
[1753341720632,0.308678,117980.0,117970.0,0.2638645]
[1753341720837,0.308678,117980.0,117970.0,1.09549502]
[1753341721143,1.272878,117980.0,117970.0,1.09549502]
[1753341721440,0.591768,117980.0,117970.0,1.09549502]
[1753341721641,0.50689331,117990.0,117980.0,0.4069201]
[1753341721832,0.18831091,117990.0,117980.0,1.10816203]
[1753341722236,0.18831091,117990.0,117980.0,1.10016062]
[1753341723344,0.18931091,117990.0,117980.0,1.10016062]
[1753341723543,0.02091511,117990.0,117980.0,1.10016062]
[1753341723743,0.19031081,117990.0,117980.0,1.10016062]
[1753341723942,0.02091511,117990.0,117980.0,1.10016062]
[1753341724145,0.19031081,117990.0,117980.0,1.10016062]
[1753341724348,0.23519081,117990.0,117980.0,0.7677201]
[1753341724645,0.23519081,117990.0,117980.0,1.10016062]
[1753341725241,0.23519081,117990.0,117980.0,1.10848912]
[1753341725945,0.23519081,117990.0,117980.0,0.7760486]
[1753341726147,0.23519081,117990.0,117980.0,1.10848912]
[1753341726940,0.06579511,117990.0,117980.0,1.10848912]
[1753341727141,0.02091511,117990.0,117980.0,1.10848912]
[1753341727439,1.52091511,117990.0,117980.0,1.10848912]
[1753341728942,0.02091511,117990.0,117980.0,1.10848912]
[1753341729142,0.04498,118010.0,118000.0,0.4068914]
[1753341729342,1.68845822,118010.0,118000.0,1.46093192]
[1753341729541,1.51909122,118010.0,118000.0,2.09633192]
[1753341729744,1.5001,118010.0,118000.0,2.09633192]
[1753341729947,1.5001,118010.0,118000.0,2.59826044]
[1753341730346,1.5001,118010.0,118000.0,2.26581992]
[1753341730545,1.5041,118010.0,118000.0,2.26581992]
[1753341730742,0.00162,118020.0,118000.0,2.42887904]
[1753341730945,0.00162,118020.0,118010.0,1.05771752]
[1753341731146,0.00162,118020.0,118010.0,1.22718952]
[1753341731350,0.0002,118030.0,118020.0,0.2036027]
[1753341731546,0.0002,118030.0,118020.0,1.68885322]
[1753341731753,0.36818992,118050.0,118040.0,0.359704]
[1753341731948,0.84626814,118050.0,118040.0,1.657224]
[1753341732253,0.84626814,118050.0,118040.0,0.921214]
[1753341732454,0.50729992,118050.0,118040.0,0.921214]
[1753341732645,0.81729992,118050.0,118040.0,0.921214]
[1753341732950,0.81729992,118050.0,118040.0,0.3608]
[1753341733151,0.83626445,118050.0,118040.0,0.530124]
[1753341733348,0.82029992,118050.0,118040.0,0.530124]
[1753341733741,0.82029992,118050.0,118040.0,0.604214]
[1753341734253,0.51029992,118050.0,118040.0,0.638464]
[1753341734447,0.4916584,118050.0,118040.0,0.638464]
[1753341734848,0.8016584,118050.0,118040.0,0.638464]
[1753341735251,0.8056584,118050.0,118040.0,0.639464]
[1753341737049,0.8056584,118050.0,118040.0,0.47014]
[1753341737844,0.8056584,118050.0,118040.0,0.43589]
[1753341738354,0.8056584,118050.0,118040.0,0.39209]
[1753341738755,0.05198,118050.0,118040.0,1.05394452]
[1753341739058,0.0071,118050.0,118040.0,2.04978452]
[1753341742556,0.05198,118050.0,118040.0,2.04978452]
[1753341743251,0.2212897,118050.0,118040.0,2.04978452]
[1753341744158,0.05198,118050.0,118040.0,2.04978452]
[1753341744349,0.2212897,118050.0,118040.0,2.04978452]
[1753341744552,0.7509897,118050.0,118040.0,1.53723]
[1753341744759,0.7509897,118050.0,118040.0,1.662584]
[1753341744955,0.7509897,118050.0,118040.0,1.561894]
[1753341746659,0.7509897,118050.0,118040.0,0.922214]
[1753341746860,0.7509897,118050.0,118040.0,1.562934]
[1753341747158,0.7509897,118050.0,118040.0,0.966014]
[1753341747360,0.7509897,118050.0,118040.0,1.606534]
[1753341747958,0.7509897,118050.0,118040.0,1.39341]
[1753341748160,0.7509897,118050.0,118040.0,1.562734]
[1753341748553,1.08343022,118050.0,118040.0,0.001]
[1753341748758,1.72395022,118050.0,118040.0,0.001]
[1753341748964,1.74288283,118050.0,118040.0,0.001]
[1753341750563,1.7509755,118050.0,118040.0,0.001]
[1753341751361,1.74288283,118050.0,118040.0,0.001]
[1753341752462,1.41044231,118050.0,118040.0,0.001]
[1753341753163,1.41044231,118050.0,118040.0,0.200114]
[1753341754263,0.76992231,118050.0,118040.0,1.03791452]
[1753341754460,0.76992231,118050.0,118040.0,1.67711452]
[1753341754659,0.3021697,118050.0,118040.0,1.69098452]
[1753341755052,0.10257,118050.0,118040.0,1.69098452]
[1753341755253,0.0071,118050.0,118040.0,1.69098452]
[1753341755659,0.1764097,118050.0,118040.0,1.69098452]
[1753341755855,0.04979,118050.0,118040.0,1.69098452]
[1753341756065,0.2190997,118050.0,118040.0,1.69098452]
[1753341756265,0.04979,118050.0,118040.0,1.69098452]
[1753341756470,0.2190997,118050.0,118040.0,1.69098452]
[1753341756765,0.01933201,118080.0,118070.0,0.169281]
[1753341756964,0.0383231,118080.0,118070.0,1.57628152]
[1753341757266,0.0383231,118080.0,118070.0,1.74566552]
[1753341757267,0.01933201,118080.0,118070.0,1.74566552]
[1753341757865,0.09192,118100.0,118070.0,1.99566552]
[1753341758168,0.66246268,118100.0,118090.0,1.29797282]
[1753341758370,0.66246268,118100.0,118090.0,1.93873282]
[1753341758569,0.6434727,118100.0,118090.0,1.93873282]
[1753341759767,0.66446169,118100.0,118090.0,1.93873282]
[1753341759962,0.66446169,118100.0,118090.0,1.29797282]
[1753341760564,0.66546169,118100.0,118090.0,1.29797282]
[1753341761161,0.66546169,118100.0,118090.0,0.9655323]
[1753341761365,0.66546169,118100.0,118090.0,1.29797282]
[1753341762171,0.69553169,118100.0,118090.0,1.22329282]
[1753341762366,0.6765427,118100.0,118090.0,1.26818282]
[1753341762562,0.7395427,118100.0,118090.0,1.09893052]
[1753341762768,0.3983923,118090.0,118080.0,0.39059]
[1753341762971,0.3984067,118080.0,118070.0,1.2991591]
[1753341763171,0.7484067,118080.0,118070.0,1.2991591]
[1753341763371,0.7484067,118080.0,118070.0,1.2568391]
[1753341763972,0.7484067,118080.0,118070.0,1.2145197]
[1753341764163,0.7494067,118080.0,118070.0,1.2145197]
[1753341764870,0.7484067,118080.0,118070.0,1.04525]
[1753341765177,0.7494067,118080.0,118070.0,1.04525]
[1753341765671,0.76789862,118080.0,118070.0,0.39059]
[1753341765871,0.398421,118070.0,118060.0,1.2441753]
[1753341766077,0.398421,118070.0,118060.0,0.6047753]
[1753341766268,0.778421,118070.0,118060.0,1.07476]
[1753341766471,0.778421,118070.0,118060.0,0.43548]
[1753341766764,0.778421,118070.0,118060.0,0.39059]
[1753341766969,1.416621,118070.0,118060.0,0.39059]
[1753341767170,0.3984353,118060.0,118050.0,1.0746]
[1753341767376,0.7284353,118060.0,118050.0,1.2439097]
[1753341767676,0.7284353,118060.0,118050.0,0.6047897]
[1753341768680,0.7304353,118060.0,118050.0,0.6047897]
[1753341768879,0.7304353,118060.0,118050.0,0.93723022]
[1753341769077,0.7304353,118060.0,118050.0,0.57643022]
[1753341769380,0.7304353,118060.0,118050.0,0.93723022]
[1753341770480,0.7304353,118060.0,118050.0,0.6047897]
[1753341770869,0.7304353,118060.0,118050.0,0.39059]
[1753341771074,0.7304353,118060.0,118050.0,0.3608]
[1753341771688,1.06587582,118060.0,118050.0,0.3608]
[1753341771888,0.7334353,118060.0,118050.0,0.3608]
[1753341772092,0.75193267,118060.0,118050.0,0.3608]
[1753341772791,0.42193267,118060.0,118050.0,0.5301097]
[1753341773097,1.37033267,118060.0,118050.0,0.5301097]
[1753341773991,1.37033226,118060.0,118050.0,0.5301097]
[1753341775594,1.38001226,118060.0,118050.0,0.5301097]
[1753341775898,1.05977226,118060.0,118050.0,0.5301097]
[1753341776096,0.42193226,118060.0,118050.0,0.5301097]
[1753341776297,1.05969226,118060.0,118050.0,0.5301097]
[1753341776592,1.05969226,118060.0,118050.0,1.57491022]
[1753341776593,0.42193226,118060.0,118050.0,1.57491022]
[1753341776788,0.4034353,118060.0,118050.0,1.57491022]
[1753341778396,0.4034353,118060.0,118050.0,1.2424697]
[1753341778899,0.7134353,118060.0,118050.0,0.39059]
[1753341779596,0.7134353,118060.0,118050.0,0.43548]
[1753341780298,0.7134353,118060.0,118050.0,0.6047897]
[1753341781594,0.7134353,118060.0,118050.0,0.6062997]
[1753341781797,0.3592853,118060.0,118050.0,0.93968022]
[1753341781996,0.09692,118060.0,118050.0,0.93968022]
[1753341782390,0.005,118060.0,118050.0,0.93968022]
[1753341782594,0.005,118060.0,118050.0,1.27212074]
[1753341782800,0.005,118060.0,118050.0,0.93968022]
[1753341783098,0.005,118060.0,118050.0,1.10909622]
[1753341784206,0.1742953,118060.0,118050.0,1.10909622]
[1753341784700,0.2729353,118060.0,118050.0,1.10909622]
[1753341786602,0.2729353,118060.0,118050.0,0.93968022]
[1753341786802,0.2729353,118060.0,118050.0,1.10909622]
[1753341787307,0.1692871,118070.0,118060.0,0.2468353]
[1753341787609,0.2679271,118070.0,118060.0,1.57547582]
[1753341787807,1.7679271,118070.0,118060.0,1.57547582]
[1753341788407,1.7719271,118070.0,118060.0,1.57547582]
[1753341792208,1.7739271,118070.0,118060.0,1.57547582]
[1753341795007,1.7719271,118070.0,118060.0,1.57547582]
[1753341795508,1.7699271,118070.0,118060.0,1.57547582]
[1753341795708,1.7719271,118070.0,118060.0,1.57547582]
[1753341796310,0.2719271,118070.0,118060.0,1.57547582]
[1753341796811,1.7719271,118070.0,118060.0,1.57547582]
[1753341798513,1.60264,118070.0,118060.0,1.57547582]
[1753341798711,0.10264,118070.0,118060.0,1.57547582]
[1753341799104,0.10264,118070.0,118060.0,0.94007582]